Cogmind - Beta 17.1 @@@ ROGUE MODE // 2026.09.03 @ 00:19:17 // AFD2020/Player2 Player: spider Result: Smashed by cave-in Performance ------------- Evolutions (0) 0 Regions Visited (4) 800 Robots Destroyed (18) 90 Value Destroyed (407) 407 Prototype IDs (0) 0 Alien Tech Used (0) 0 Bonus (231) 231 TOTAL SCORE: 1528 Bonus ------- Follower Combat Kills 282 Friendly Fire -51 Cogmind --------- Core Integrity 0/250 Matter 285/300 Energy 246/250 System Corruption 5% Temperature Hot (214) Movement Treading (240) Ox1 Location -9/Mines Parts ------- > --- POWER (1) -------- Ion Engine > --- PROPULSION (2) --- Light Treads > --- UTILITY (2) ------ Medium Storage Unit Hardened Light Armor Plating > --- WEAPON (2) ------- Beam Cannon Beam Cannon > --- INVENTORY (10) --- Light Treads Light Treads Seismic Detector Medium Armor Plating Hardened Light Armor Plating Hardened Light Armor Plating Beam Cannon Heavy Assault Rifle Rocket Launcher Makeshift Axe Peak State ------------ > --- POWER ------------ Ion Engine > --- PROPULSION ------- Light Treads Light Treads > --- UTILITY ---------- Medium Storage Unit Hardened Light Armor Plating > --- WEAPON ----------- Beam Cannon Makeshift Axe > --- INVENTORY -------- Light Treads Light Treads Seismic Detector Medium Armor Plating Hardened Light Armor Plating Hardened Light Armor Plating Beam Cannon Beam Cannon Heavy Assault Rifle Rocket Launcher [Rating: 12] Favorites ----------- Power Light Ion Engine Engine Light Ion Engine Propulsion Light Treads Treads Light Treads Utility Hardened Light Armor Plating Storage Medium Storage Unit Protection Hardened Light Armor Plating Weapon Beam Cannon Energy Gun Medium Laser Energy Cannon Beam Cannon Ballistic Gun Light Assault Rifle Slashing Weapon Makeshift Axe Build | -11 -10 -10 -10 -9 ------- Run | Yrd Mat Min Exi Min Slots Evolved . | . . . . . Power . | . . . . . Propulsion . | . . . . . Utility . | . . . . . Weapon . | . . . . . Parts Attached 15 | 6 5 3 . 1 Power 2 | 1 . 1 . . Engine 2 | 1 . 1 . . Core . | . . . . . Reactor . | . . . . . Propulsion 4 | 2 1 1 . . Treads 4 | 2 1 1 . . Leg . | . . . . . Wheel . | . . . . . Hover . | . . . . . Flight . | . . . . . Utility 3 | 1 2 . . . Device . | . . . . . Storage 2 | 1 1 . . . Processor . | . . . . . Hackware . | . . . . . Protection 1 | . 1 . . . Artifact . | . . . . . Weapon 6 | 2 2 1 . 1 Energy Gun 1 | . 1 . . . Energy Cannon 2 | . 1 1 . . Ballistic Gun 2 | 2 . . . . Ballistic Cannon . | . . . . . Launcher . | . . . . . Special Weapon . | . . . . . Impact Weapon . | . . . . . Slashing Weapon 1 | . . . . 1 Piercing Weapon . | . . . . . Special Melee Weapon . | . . . . . Unidentified Prototypes . | . . . . . Parts Lost 2 | . . 1 . 1 Power . | . . . . . Propulsion 1 | . . . . 1 Utility . | . . . . . Weapon 1 | . . 1 . . Highest Loss Streak 1 | . . 1 . 1 To Critical Strikes . | . . . . . Average Backups 8 | 3 8 10 10 10 Power . | . 1 . . . Propulsion 2 | 1 2 2 3 2 Utility 3 | . 2 4 4 4 Weapon 2 | . 1 2 3 3 Tool/Special . | . . . . . Unused Backups 13 | . 5 1 . 7 Power . | . . . . . Propulsion 4 | . 3 . . 1 Utility 5 | . 1 1 . 3 Weapon 4 | . 1 . . 3 Tool/Special . | . . . . . Average Slot Usage (%) 98 | . 95 100 100 100 Engine 14 | . 14 14 14 14 Treads 27 | . 27 28 28 28 Storage 14 | . 14 14 14 14 Protection 12 | . 10 14 14 14 Energy Gun 1 | . 3 . . . Energy Cannon 17 | . 9 18 28 27 Ballistic Gun 9 | . 14 9 . . Peak Build Rating 12 | 6 9 9 9 12 Average Rating 8 | 5 8 8 9 9 On Entrance 6 | . 6 9 9 9 Avg Prop Armor Cover (%) . | . . . . . Naked Turns . | . . . . . Heaviest Build 26 | 10 22 26 26 26 Greatest Support 40 | 40 40 40 40 40 Greatest Overweight (x) . | . . . . . Average Overweight (x) . | . . . . . Largest Inventory Capacity 10 | 8 10 10 10 10 Average Capacity 9 | 7 9 10 10 10 Most Carried 10 | 6 10 10 10 10 Average Carried 8 | 3 8 9 10 9 Final Capacity 10 | 8 10 10 10 10 Final Carried 10 | 6 10 10 10 10 Class Distribution -------------------- 100% | Mutant Dominant Class ---------------- Mutant | -10/Materials Mutant | -10/Mines Mutant | -10/Exiles Mutant | -9/Mines Resources | -11 -10 -10 -10 -9 ----------- Run | Yrd Mat Min Exi Min Matter Collected 425 | 167 228 20 . 10 Remotely . | . . . . . Salvage Created 549 | 102 300 29 . 118 Parts 37 | 13 15 1 . 8 Haulers Intercepted 1 | . 1 . . . Recyclers Shooed 1 | . . . . 1 Parts Field Recycled . | . . . . . Retrieved Matter . | . . . . . Parts Self-Destructed . | . . . . . Prevented . | . . . . . Parts Restored . | . . . . . Kills | -11 -10 -10 -10 -9 ------- Run | Yrd Mat Min Exi Min Combat Hostiles Destroyed 12 | . 7 2 . 3 Guns 7 | . 6 1 . . Cannons 5 | . 1 1 . 3 Classes Destroyed 8 | 3 3 . . 2 Worker 1 | 1 . . . . Tunneler 3 | 2 . . . 1 Hauler 1 | . 1 . . . Recycler 1 | 1 . . . . Swarmer 4 | . 2 2 . . Grunt 6 | . 5 . . 1 Duelist 1 | . . . . 1 Demolisher 1 | . . . . 1 Best Kill Streak 3 | 3 3 2 . 1 Combat Bots Only 3 | . 3 2 . 1 Max Kills in Single Turn 1 | 1 1 1 . 1 Gunslinging . | . . . . . Exploded . | . . . . . Melee . | . . . . . Uniques/NPCs Destroyed . | . . . . . Combat | -11 -10 -10 -10 -9 -------- Run | Yrd Mat Min Exi Min Hostile Shots Fired 48 | . 25 21 . 2 Missed 12 | . 6 6 . . Hits 36 | . 19 15 . 2 Projectile 36 | . 19 15 . 2 AOE 5 | . . . . 5 Critical Strikes 1 | . . 1 . . Damage Taken 1011 | . 295 164 . 552 Core 196 | . 61 . . 135 Absorbed by Shields . | . . . . . Regen/Repaired (Parts) 106 | . 106 . . . Core Remaining (%) 100 | 100 . . . . Volleys Fired 67 | 24 31 5 . 7 Largest 2 | 2 2 2 . 2 Hottest 120 | 40 80 120 . 120 Shots Fired 134 | 48 62 10 . 14 Gun 107 | 48 55 4 . . Cannon 27 | . 7 6 . 14 Launcher . | . . . . . Special . | . . . . . Kinetic 83 | 48 31 4 . . Thermal 51 | . 31 6 . 14 Explosive . | . . . . . Electromagnetic . | . . . . . Robot Hit Streak 15 | 15 8 5 . 8 Robot Miss Streak 5 | 1 3 5 . 2 Penetration Max . | . . . . . Secondary Targets 1 | . 1 . . . Max Gunslinging Chain 1 | . 1 . . . Shots Hit Robots 93 | 37 41 5 . 10 Core Hits 34 | 9 17 4 . 4 Critical Kills . | . . . . . Critical Parts Destroyed 1 | . 1 . . . Critical Strikes 3 | . 3 . . . Burn 2 | . 2 . . . Destroy 1 | . 1 . . . Melee Attacks 3 | . . . . 3 Impact . | . . . . . Slashing 3 | . . . . 3 Piercing . | . . . . . Sneak Attacks . | . . . . . Combat Hostiles . | . . . . . Follow-up Attacks . | . . . . . Damage Inflicted 1049 | 286 464 92 . 207 Guns 690 | 286 389 15 . . Cannons 334 | . 74 70 . 190 Explosions . | . . . . . Melee . | . . . . . Ramming 25 | . 1 7 . 17 Kinetic 478 | 286 177 15 . . Thermal 546 | . 286 70 . 190 Explosive . | . . . . . Electromagnetic . | . . . . . Impact . | . . . . . Slashing . | . . . . . Piercing . | . . . . . Highest Corruption . | . . . . . Average Corruption . | . . . . . Corruption Purged . | . . . . . Corruption Blocked . | . . . . . Overload Shots . | . . . . . Overflow Damage . | . . . . . Projectiles . | . . . . . Explosions . | . . . . . Melee . | . . . . . Knockbacks . | . . . . . Impact . | . . . . . Kinetic . | . . . . . Secondary . | . . . . . Self-Inflicted Damage . | . . . . . Shots . | . . . . . Rammed 9 | . 1 3 . 5 Targets Rammed 10 | . 1 3 . 6 Kicked . | . . . . . Crushed 1 | . . . . 1 Highest Temperature 244 | . 244 170 . 225 Average Temperature 73 | . 71 74 . 76 Received Heat Transfer 192 | . 141 45 . 6 Siege Activations . | . . . . . Martial Activations . | . . . . . Shielding Activations . | . . . . . Robots Disrupted . | . . . . . Combat Hostiles . | . . . . . Robots Corrupted . | . . . . . Combat Hostiles . | . . . . . Parts Fried . | . . . . . Impact Corruptions . | . . . . . Robots Melted . | . . . . . Combat Hostiles . | . . . . . Parts Melted 1 | . . 1 . . Heat Transferred 1452 | . 925 148 . 379 Parts Sabotaged . | . . . . . Parts Stolen . | . . . . . Parts Stripped . | . . . . . Power Chain Reactions . | . . . . . Alert | -11 -10 -10 -10 -9 ------- Run | Yrd Mat Min Exi Min Maximum Alert Level 1 | . 1 . . . Low Security (%) 88 | 100 76 100 . 100 Level 1 11 | . 23 . . . Level 2 . | . . . . . Level 3 . | . . . . . Level 4 . | . . . . . Level 5 . | . . . . . High Security . | . . . . . Max Security . | . . . . . Peak Influence 288 | 10 288 105 . 68 Initial 10 | . . 10 . . Average 77 | 1 133 22 . 35 Influence Increases 936 | 20 553 155 . 208 Destroy 0b10 Robot/C 520 | . 300 100 . 120 Destroy 0b10 Robot/NC 45 | 20 20 . . 5 Destroy Leader 104 | . 64 10 . 30 Allied During Kill 187 | . 91 45 . 51 Successful Hack 33 | . 33 . . . Disable Machine 30 | . 30 . . . Destroy Structure 2 | . . . . 2 Lose Combat Pursuer 15 | . 15 . . . Influence Decreases 886 | 20 526 182 . 158 Entered New Map 17 | . . 17 . . Time Decay 779 | 20 496 155 . 108 Lost Part 50 | . 30 10 . 10 Lost Ally 40 | . . . . 40 Squads Dispatched 4 | . 4 . . . Investigation 2 | . 2 . . . Extermination . | . . . . . Reinforcement 2 | . 2 . . . Assault . | . . . . . Garrison . | . . . . . Intercept . | . . . . . Searches Triggered . | . . . . . Construction Impeded . | . . . . . Haulers Reinforced . | . . . . . Active Scanning Responses . | . . . . . Cargo Convoy Interrupts . | . . . . . Stealth | -11 -10 -10 -10 -9 --------- Run | Yrd Mat Min Exi Min Distress Signals 5 | . 5 . . . Communications Jammed . | . . . . . Distress Signals . | . . . . . Times Spotted 34 | . 23 5 . 6 Peak Tracking Total 4 | . 4 3 . 2 Tactical Retreats 1 | . 1 . . . Traps | -11 -10 -10 -10 -9 ------- Run | Yrd Mat Min Exi Min Traps Triggered . | . . . . . Indirectly . | . . . . . Trap Hack Attempts . | . . . . . Triggered . | . . . . . Disarmed . | . . . . . Reprogrammed . | . . . . . Reused . | . . . . . Traps Extracted . | . . . . . Installed . | . . . . . Triggered . | . . . . . Machines | -11 -10 -10 -10 -9 ---------- Run | Yrd Mat Min Exi Min Machines Disabled 4 | . 3 1 . . Max in Single Turn 1 | . 1 . . . Machines Repaired . | . . . . . Machines Dismantled . | . . . . . Machines Sabotaged . | . . . . . Overloaded Fab Kills . | . . . . . Hacking | -11 -10 -10 -10 -9 --------- Run | Yrd Mat Min Exi Min Machines Accessed 9 | . 8 . 1 . Terminals 5 | . 5 . . . Fabricators . | . . . . . Repair Stations 1 | . 1 . . . Recycling Units 2 | . 2 . . . Scanalyzers . | . . . . . Garrison Access . | . . . . . Total Hacks 26 | . 25 . 1 . Successful 17 | . 16 . 1 . Failed 8 | . 8 . . . Catastrophic 1 | . 1 . . . Database Lockouts 1 | . 1 . . . Manual 18 | . 18 . . . Terminals 18 | . 18 . . . Fabricators . | . . . . . Repair Stations 4 | . 4 . . . Recycling Units 3 | . 3 . . . Scanalyzers . | . . . . . Garrison Access . | . . . . . Terminal Hacks 4 | . 3 . 1 . Record 1 | . . . 1 . Part Schematic 2 | . 2 . . . Robot Analysis 1 | . 1 . . . Fabricator Hacks . | . . . . . Repair Station Hacks 4 | . 4 . . . Scan Component 2 | . 2 . . . Repair 2 | . 2 . . . Recycling Unit Hacks 2 | . 2 . . . Retrieve Components 2 | . 2 . . . Scanalyzer . | . . . . . Garrison Access Hacks . | . . . . . Unauthorized Hacks 7 | . 7 . . . Terminals 7 | . 7 . . . Botnet 2 | . 2 . . . Skim 5 | . 5 . . . Fabricators . | . . . . . Repair Stations . | . . . . . Recycling Units . | . . . . . Scanalyzers . | . . . . . Garrison Access . | . . . . . Data Cores Recovered . | . . . . . Used . | . . . . . Hacking Detections 4 | . 4 . . . Full Trace Events . | . . . . . Feedback Events . | . . . . . Feedback Blocked . | . . . . . Robot Schematics Acquired . | . . . . . Robots Built . | . . . . . Authchips . | . . . . . Time . | . . . . . Total Robot Build Rating . | . . . . . Part Schematics Acquired 2 | . 2 . . . Parts Built . | . . . . . Authchips . | . . . . . Time . | . . . . . Total Part Build Rating . | . . . . . Part Studies Acquired . | . . . . . Parts Repaired 2 | . 2 . . . Time 52 | . 52 . . . Parts Recycled . | . . . . . Recycled Matter . | . . . . . Retrieved Matter . | . . . . . Retrieved Components . | . . . . . Parts Scanalyzed . | . . . . . Part Schematics Acquired . | . . . . . Parts Damaged . | . . . . . Bothacking | -11 -10 -10 -10 -9 ------------ Run | Yrd Mat Min Exi Min Used RIF Installer . | . . . . . Robots Hacked . | . . . . . Non-combat . | . . . . . Combat . | . . . . . Robot Hacks Applied . | . . . . . Relay Couplers Released . | . . . . . Fabnet Peak Effective % . | . . . . . Robots Rewired . | . . . . . Allies Hacked . | . . . . . Hacks Repelled . | . . . . . Allies | -11 -10 -10 -10 -9 -------- Run | Yrd Mat Min Exi Min Total Allies 5 | . 1 4 . . Largest Group 4 | . 1 4 4 3 Highest-Rated Group 97 | . 57 97 97 89 Highest-Rated Ally 57 | . 57 57 57 57 Total Orders . | . . . . . Ally Attacks 66 | . 36 18 . 12 Total Damage 868 | . 392 198 . 278 Kills 17 | . 11 3 . 3 Allies Corrupted . | . . . . . Allies Melted . | . . . . . Intel | -11 -10 -10 -10 -9 ------- Run | Yrd Mat Min Exi Min Active Infowar (turns) . | . . . . . Robot Analysis Total 1 | . 1 . . . Derelict Logs Recovered 1 | . . 1 . . Drone Launches . | . . . . . Drone Recoveries . | . . . . . Exploration | -11 -10 -10 -10 -9 ------------- Run | Yrd Mat Min Exi Min Turns Passed 3600 | 147 1466 1044 664 279 Spaces Moved 1665 | 47 573 486 410 149 Core 4 | 4 . . . . Treads 1661 | 43 573 486 410 149 Legs . | . . . . . Wheels . | . . . . . Hover . | . . . . . Flight . | . . . . . Fastest Speed 50 | 50 160 160 160 160 Average Speed 159 | 150 160 160 160 160 Slowest Speed 160 | 160 160 160 160 160 Overloaded Moves . | . . . . . Propulsion Burnouts . | . . . . . Robots Hopped . | . . . . . Potential Cave-ins 2 | . . . . 2 Cave-ins Triggered 1 | . . . . 1 Exploration Rate (%) 61 | 3 94 88 85 37 Regions Visited 4 Branch Regions 3 Pre-discovered Areas 1 | . 1 . . . Known Exits Taken . | . . . . . Unknown Exits Taken 4 | 1 1 1 1 . Scrap Searched 2 | . . 1 . 1 Spaces Dug 3 | . . . . 3 Terrain Destroyed 3 | . . . . 3 Melee 3 | . . . . 3 Projectile . | . . . . . AOE . | . . . . . Terrain Rammed . | . . . . . Walls Destroyed . | . . . . . Machines Disabled . | . . . . . Actions | -11 -10 -10 -10 -9 --------- Run | Yrd Mat Min Exi Min Total 2483 | 82 1072 742 418 169 Wait 689 | . 440 239 9 1 Move 1660 | 46 572 485 409 148 Hop . | . . . . . Pick Up 23 | 6 12 4 . 1 Fast Attach 9 | 6 3 . . . Attach 2 | . 1 1 . . Detach . | . . . . . Swap 6 | . 2 2 . 2 Drop 14 | . 10 3 . 1 Fire 67 | 24 31 5 . 7 Melee 3 | . . . . 3 Ram . | . . . . . Kick . | . . . . . Crush 10 | . 1 3 . 6 Escape Stasis . | . . . . . Rewire . | . . . . . Trap . | . . . . . Miscellaneous . | . . . . . Route ------- -11/Scrapyard -10/Materials (discovered 4 exits: *Mat x3 / [*Min]) -10/Mines (discovered 4 exits: *Mat x2 / *Exi / [*Sub]) -10/Exiles -9/Mines (discovered 2 exits: [*Mat x2]) History --------- Turn | Location | Event 13 | -11/Scrapyard | Discovered new exit (range 15) 148 | -11/Scrapyard | Entered Materials 223 | -10/Materials | Discovered new exit (range 11) 303 | -10/Materials | Build established: Mutant 340 | -10/Materials | Core integrity fell below 50% 353 | -10/Materials | Discovered new exit (range 11) 683 | -10/Materials | Central database locked down 771 | -10/Materials | Discovered new exit (range 7) 782 | -10/Materials | Repaired Lgt. Treads? 911 | -10/Materials | Learned 2 Mines zone layouts 948 | -10/Materials | Repaired Lgt. Treads 974 | -10/Materials | Learned Storage emergency access door positions 1026 | -10/Materials | Learned Storage stockpile data 1030 | -10/Materials | Discovered new exit (range 13) 1048 | -10/Materials | Derelicts attacked the area 1069 | -10/Materials | Learned location of Recycling (-7) 1100 | -10/Materials | Learned Storage stockpile data 1614 | -10/Materials | Entered Mines 1615 | -10/Mines | Identified exit to Materials 1654 | -10/Mines | Learned Materials stockpile data 1686 | -10/Mines | Received a Mining Laser from a helpful Derelict 2124 | -10/Mines | Assisted by bots powering up and referring to "LRC-V3" 2202 | -10/Mines | Discovered exit to Materials (range 14) 2450 | -10/Mines | Discovered new exit (range 11) 2468 | -10/Mines | A weapon hastily lodged in a ceiling crevice suddenly fell to the ground 2522 | -10/Mines | Deemed a non-threat by the Exiles lab entrance 2522 | -10/Mines | Discovered new exit (range 5) 2658 | -10/Mines | Entered Exiles 2658 | -10/Exiles | Found Exiles lab abandoned 2658 | -10/Exiles | Accompanied by 3 allies 3292 | -10/Exiles | Discovered new exit (range 14) 3322 | -10/Exiles | Entered Mines 3322 | -9/Mines | Accompanied by 3 allies 3322 | -9/Mines | Discovered new exit (range 6) 3351 | -9/Mines | Discovered new exit (range 7) 3550 | -9/Mines | Assembled infested the area 3555 | -9/Mines | Assisted by a Guerilla fighting off Assembled 3590 | -9/Mines | Core integrity fell below 20% 3601 | -9/Mines | Crushed by falling debris 3601 | -9/Mines | Smashed by cave-in Last Messages --------------- coming from, and they're closing on this area, come on!" 03591_ Trooper 1b destroyed. 03591_ Seismic Survey Station disabled. 03591_ U-05 Engineer builds a Wall. 03593_ U-05 Engineer lays Concrete. 03594_ The unstable cave ceiling collapses. 03594_ D-53 Grenadier overheating. 03594_ U-05 Engineer builds a Wall. 03594_ D-53 Grenadier destroyed. 03595_ Trooper 1a destroyed. 03595_ U-05 Engineer lays Concrete. 03597_ D-53 Grenadier destroyed. 03597_ U-05 Engineer builds a Wall. 03601_ Player 2 drops Aluminum Leg. 03601_ Player 2 attaches Aluminum Leg. 03601_ U-05 Engineer lays Concrete. 03601_ The unstable cave ceiling collapses. 03601_ Crushed by falling debris. 03601_ Lgt. Treads destroyed. 03601_ System corrupted by crushing effect (+5). Map ----- +----------------------------------------------------+ | ?????????????????????????????????????????????????? | | ?????????????????????????????????????????????????? | | ?????????????????????????????????????????????????? | | ?????????????????????????????????????????????????? | | ?????????????????????????????????????????????????? | | ?????????????????????????????????????????????????? | | ?????????????????????????????????????????????????? | | ?????????????????????????????????????????????????? | | ?????????????????????????????????????????????????? | | ?????????????????????????????????????????????????? | | ?????????????????????????????????????????????????? | | ??????????????###??###???????????????????????????? | | ??????????????# ?? #???????????????????????????? | | ??????????????# ?"" #???????????????????????????? | | ??????????????# """ #???????????????????????????? | | ??????????????# """ #???????????????????????????? | | ??????????????# #???????????????????????????? | | ??????????????# """ ####????????????????????????? | | ???##?????????# """ # ###??????????????????????? | | ??## ????????# "" #?????? ##????????????? | | ??# ##?????# @= ##????? ????????????? | | ???# ###??### # #???? ???????????? | | ????# ####?# ##???# ????????????? | | ?????# ### # #?## ?????????????? | | ?????## ## ## ???????????????? | | ??????# @ # #????????????????? | | ??????## ##=## #?????????????????? | | ???????#### ###*#### != ##?????????????????? | | ??????????####?# #### *%##??????????????????? | | ???????????????# #?# =#???? ??????????????? | | ???????????????## # = #???# ??????????????? | | ????????????????? * u %]% * #??? ???????????????? | | ????????????????? ###u=% %##??? ???????????????? | | ????????????????? #### r#??? #???????????????? | | ?????????????????## ##???# #??? #???????????????? | | ????????????############## #### ##??????????????? | | ???????????## ## # ##?????????????? | | ??????????## #?????????????? | | ?????????## #### #??####????????? | | ?????????# #??# k ###?## =##???????? | | ?????????# #??## ##??## %#???????? | | ?????????## ##???# ##?## % =#???????? | | ??????????# ####????## ### %#????????? | | ??????????# #????????##### ######???? | | ??????????# #####????????###### < ## ## ##??? | | ??????????# #?????????????# ### #??? | | ??????????##### ######????????#####?## [#### | | ??????????????# #???????????????## ## | | ??????????????###### #????????????????###### | | ???????????????##### ##????????????????????##### # | +----------------------------------------------------+ Best States ------------- Heat Dissipation 25 Energy Generation 10 Energy Capacity 250 Matter Stores 300 Matter Capacity 300 Sight Range 16 Terrain Scan Density 10 Armor Coverage 150 Evasion (%) 40 Recoil Reduction 2 Item Schematics ----------------- Hcp. Storage Unit | -10/Materials | Hacked Huge Storage Unit | -10/Materials | Hacked Robot Schematics ------------------ None Fabricated ------------ Nothing Repaired ---------- Lgt. Treads | 65% | -10/Materials Lgt. Treads | 59% | -10/Materials Studied --------- None Alien Tech Used ----------------- None Achievements -------------- None Challenges ------------ None Player 2 | -11 -10 -10 -10 -9 ---------- Run | Yrd Mat Min Exi Min Slots Evolved . | . . . . . Power . | . . . . . Propulsion . | . . . . . Utility . | . . . . . Weapon . | . . . . . Parts Attached 19 | . 18 . . 1 Parts Lost 3 | . 3 . . . Damage Taken 576 | . 335 15 . 226 Core 113 | . 81 . . 32 Player 2/Cogmind (%) 36 | . 57 . . 19 Absorbed by Shields . | . . . . . Damage Inflicted 708 | . 392 123 . 193 Player 2/Cogmind (%) 40 | . 45 57 . 48 Combat Hostiles Destroyed 12 | . 8 2 . 2 Player 2/Cogmind (%) 50 | . 53 50 . 40 Game ------ Seed CryofiberElectronLink Manual? 0 Play Time 00:13:36 Cumulative 543.1 hours Start 2026.09.03 @ 00:07:03 End 2026.09.03 @ 00:19:17 Sessions 1 Manual Loads 0 Difficulty Rogue Special Mode AFD2020/Player2 Game No. 200 Rogue 199 Adventurer 1 Explorer 0 Win Type - Total 28 Types 8/3/4/2/1/1/6/1/1/1 Lore% 69 Gallery% 85 Achievement% 81 Wizard Run 0 Options --------- Layout 0 ASCII 0 Keyboard 0 Movement Arrows Keybinds 0 Fullscreen 2 Font 24/Smallcaps Map View 76x50 Zoom Use 0% Tactical HUD 1 Map Filters NONE Filters NONE Steam 1 RUN: d77865fb-e665-496d-9eea-a9cfcdd6cf3a